Cogmind - Beta 12 @@@ ROGUE MODE // 2024.02.16 @ 12:43:30 Player: Utheran Result: Self-destructed Performance ------------- Evolutions (1) 500 Regions Visited (2) 400 Robots Destroyed (18) 90 Value Destroyed (552) 552 Prototype IDs (3) 60 Alien Tech Used (0) 0 Bonus (0) 0 TOTAL SCORE: 1602 Bonus ------- None Cogmind --------- Core Integrity 88/400 Matter 210/300 Energy 90/160 System Corruption 5% Temperature Warm (149) Movement Core (500) Ox9 Location -9/Materials Parts ------- > --- POWER (1) -------- Light Nuclear Core > --- PROPULSION (2) --- (None) > --- UTILITY (4) ------ Medium Storage Unit Signal Interpreter Medium Armor Plating Medium Armor Plating > --- WEAPON (2) ------- (None) > --- INVENTORY (10) --- Improved Hover Unit Improved Hover Unit Improved Hover Unit Peak State ------------ > --- POWER ------------ Light Ion Engine > --- PROPULSION ------- Aluminum Leg Aluminum Leg > --- UTILITY ---------- Medium Storage Unit Signal Interpreter Terrain Scanner Light Armor Plating > --- WEAPON ----------- Medium Laser Beam Cannon > --- INVENTORY -------- Light Ion Engine Light Nuclear Core Improved Hover Unit Improved Hover Unit Improved Hover Unit Medium Armor Plating Medium Armor Plating Mining Laser [Rating: 10] Favorites ----------- Power Light Ion Engine Engine Light Ion Engine Power Core Light Nuclear Core Propulsion Improved Hover Unit Leg Aluminum Leg Wheel Compact Wheel Hover Unit Improved Hover Unit Flight Unit Improved Flight Unit Utility Medium Storage Unit Device Terrain Scanner Storage Medium Storage Unit Processor Signal Interpreter Protection Light Armor Plating Weapon Light Assault Rifle Energy Gun Medium Laser Energy Cannon Beam Cannon Ballistic Gun Light Assault Rifle Special Weapon Mining Laser Build | -11 -10 -9 ------- Run | Jun Mat Mat Slots Evolved 2 | . . 2 Power . | . . . Propulsion . | . . . Utility 2 | . . 2 Weapon . | . . . Parts Attached 28 | 6 15 7 Power 4 | 1 1 2 Engine 3 | 1 1 1 Core 1 | . . 1 Reactor . | . . . Propulsion 11 | 2 9 . Treads . | . . . Leg 2 | . 2 . Wheel 4 | 2 2 . Hover 4 | . 4 . Flight 1 | . 1 . Utility 7 | 1 2 4 Device 1 | . . 1 Storage 2 | 1 1 . Processor 1 | . . 1 Hackware . | . . . Protection 3 | . 1 2 Artifact . | . . . Weapon 6 | 2 3 1 Energy Gun 1 | . 1 . Energy Cannon 1 | . 1 . Ballistic Gun 3 | 2 1 . Ballistic Cannon . | . . . Launcher . | . . . Special Weapon 1 | . . 1 Impact Weapon . | . . . Slashing Weapon . | . . . Piercing Weapon . | . . . Special Melee Weapon . | . . . Unidentified Prototypes 1 | . 1 . Parts Lost 14 | . 5 9 Power 3 | . 1 2 Propulsion 4 | . 2 2 Utility 2 | . . 2 Weapon 5 | . 2 3 Highest Loss Streak 9 | . 4 9 To Critical Strikes . | . . . Average Slot Usage (%) 83 | . 84 73 Engine 12 | . 13 5 Leg 5 | . 4 15 Wheel 5 | . 6 . Hover 12 | . 14 . Storage 13 | . 14 11 Processor 1 | . . 11 Protection 4 | . 3 8 Energy Gun 4 | . 3 6 Energy Cannon 3 | . 3 6 Ballistic Gun 17 | . 19 . Naked Turns . | . . . Heaviest Build 22 | 10 21 22 Greatest Support 32 | 26 32 20 Greatest Overweight (x) 3 | . 2 3 Average Overweight (x) . | . . 1 Largest Inventory Capacity 10 | 8 10 10 Average Capacity 9 | 6 9 10 Most Carried 10 | 5 10 9 Average Carried 7 | 2 8 7 Final Capacity 10 | 8 10 10 Final Carried 10 | 2 10 3 Class Distribution -------------------- 100% | Mutant Dominant Class ---------------- Mutant | -10/Materials Mutant | -9/Materials Resources | -11 -10 -9 ----------- Run | Jun Mat Mat Matter Collected 456 | 233 223 . Remotely . | . . . Salvage Created 677 | . 531 146 Parts 39 | . 32 7 Haulers Intercepted 1 | . 1 . Recyclers Shooed . | . . . Parts Field Recycled . | . . . Retrieved Matter . | . . . Parts Self-Destructed . | . . . Prevented . | . . . Kills | -11 -10 -9 ------- Run | Jun Mat Mat Combat Hostiles Destroyed 14 | . 11 3 Guns 9 | . 8 1 Cannons 5 | . 3 2 Classes Destroyed 5 | . 4 1 Worker 1 | . 1 . Hauler 1 | . 1 . Watcher 2 | . 1 1 Grunt 13 | . 11 2 Brawler 1 | . . 1 Best Kill Streak 4 | . 4 2 Combat Bots Only 2 | . 2 1 Max Kills in Single Turn 1 | . 1 1 Gunslinging . | . . . Exploded . | . . . Melee . | . . . Uniques/NPCs Destroyed . | . . . Combat | -11 -10 -9 -------- Run | Jun Mat Mat Damage Taken 1664 | . 709 955 Core 528 | . 216 312 Absorbed by Shields . | . . . Regen/Repaired (Parts) 5 | . 5 . Core Remaining (%) 56 | 100 13 . Volleys Fired 76 | . 61 15 Largest 2 | . 2 2 Hottest 110 | . 110 110 Shots Fired 142 | . 115 27 Gun 116 | . 104 12 Cannon 24 | . 11 13 Launcher . | . . . Special 2 | . . 2 Kinetic 91 | . 91 . Thermal 51 | . 24 27 Explosive . | . . . Electromagnetic . | . . . Robot Hit Streak 12 | . 12 4 Robot Miss Streak 3 | . 3 3 Penetration Max . | . . . Secondary Targets 2 | . 2 . Max Gunslinging Chain 1 | . 1 . Shots Hit Robots 89 | . 73 16 Core Hits 35 | . 30 5 Critical Kills . | . . . Critical Parts Destroyed . | . . . Critical Strikes 2 | . 1 1 Burn 2 | . 1 1 Melee Attacks . | . . . Impact . | . . . Slashing . | . . . Piercing . | . . . Sneak Attacks . | . . . Combat Hostiles . | . . . Follow-up Attacks . | . . . Damage Inflicted 993 | . 718 275 Guns 707 | . 630 77 Cannons 262 | . 88 174 Explosions . | . . . Melee . | . . . Ramming . | . . . Kinetic 517 | . 517 . Thermal 476 | . 201 275 Explosive . | . . . Electromagnetic . | . . . Impact . | . . . Slashing . | . . . Piercing . | . . . Highest Corruption 5 | . . 5 Average Corruption 5 | . . 5 Corruption Purged . | . . . Corruption Blocked . | . . . Effects 1 | . . 1 Message Errors 1 | . . 1 Overload Shots . | . . . Overflow Damage 4 | . . 4 Projectiles 4 | . . 4 Explosions . | . . . Melee . | . . . Knockbacks . | . . . Impact . | . . . Kinetic . | . . . Secondary . | . . . Self-Inflicted Damage . | . . . Shots . | . . . Rammed . | . . . Targets Rammed . | . . . Kicked . | . . . Crushed . | . . . Highest Temperature 553 | . 551 553 Average Temperature 180 | . 132 284 Received Heat Transfer 732 | . 393 339 Effects 17 | . 6 11 Shutdowns 3 | . 1 2 Energy Bleed 4 | . 1 3 Interference 2 | . 2 . Matter Decay 1 | . . 1 Short Circuit 2 | . . 2 Damage (minor) 2 | . 1 1 Damage (major) 2 | . . 2 Damage (core) 1 | . 1 . Siege Activations . | . . . Robots Corrupted . | . . . Combat Hostiles . | . . . Parts Fried . | . . . Impact Corruptions . | . . . Robots Melted . | . . . Combat Hostiles . | . . . Parts Melted 1 | . 1 . Heat Transferred 1308 | . 592 716 Parts Sabotaged . | . . . Parts Stolen . | . . . Parts Stripped . | . . . Power Chain Reactions . | . . . Missiles Intercepted . | . . . Alert | -11 -10 -9 ------- Run | Jun Mat Mat Peak Influence 213 | . 213 146 Initial 89 | . . 89 Average 76 | . 76 117 Maximum Alert Level 1 | . 1 . Low Security (%) 85 | 100 82 100 Level 1 14 | . 17 . Level 2 . | . . . Level 3 . | . . . Level 4 . | . . . Level 5 . | . . . High Security . | . . . Max Security . | . . . Squads Dispatched 3 | . 3 . Investigation 2 | . 2 . Extermination . | . . . Reinforcement 1 | . 1 . Assault . | . . . Garrison . | . . . Intercept . | . . . Searches Triggered . | . . . Construction Impeded . | . . . Haulers Reinforced . | . . . Active Scanning Responses . | . . . Cargo Convoy Interrupts . | . . . Stealth | -11 -10 -9 --------- Run | Jun Mat Mat Distress Signals 3 | . 2 1 Communications Jammed . | . . . Distress Signals . | . . . Times Spotted 31 | . 25 6 Peak Tracking Total 6 | . 5 6 Tactical Retreats 2 | . 2 . Traps | -11 -10 -9 ------- Run | Jun Mat Mat Traps Triggered 3 | . 3 . Indirectly . | . . . Trap Hack Attempts . | . . . Triggered . | . . . Disarmed . | . . . Reprogrammed . | . . . Reused . | . . . Traps Extracted . | . . . Installed . | . . . Triggered . | . . . Machines | -11 -10 -9 ---------- Run | Jun Mat Mat Machines Disabled . | . . . Max in Single Turn . | . . . Machines Repaired . | . . . Machines Sabotaged . | . . . Overloaded Fab Kills . | . . . Hacking | -11 -10 -9 --------- Run | Jun Mat Mat Machines Accessed 7 | . 7 . Terminals 4 | . 4 . Fabricators . | . . . Repair Stations 1 | . 1 . Recycling Units 2 | . 2 . Scanalyzers . | . . . Garrison Access . | . . . Total Hacks 14 | . 14 . Successful 7 | . 7 . Failed 7 | . 7 . Catastrophic . | . . . Database Lockouts . | . . . Manual . | . . . Terminals 10 | . 10 . Fabricators . | . . . Repair Stations 2 | . 2 . Recycling Units 2 | . 2 . Scanalyzers . | . . . Garrison Access . | . . . Terminal Hacks 3 | . 3 . Prototype ID Bank 1 | . 1 . Emergency Access Points 2 | . 2 . Fabricator Hacks . | . . . Repair Station Hacks 2 | . 2 . Scan Component 1 | . 1 . Repair 1 | . 1 . Recycling Unit Hacks 2 | . 2 . Report Inventory 2 | . 2 . Scanalyzer . | . . . Garrison Access Hacks . | . . . Unauthorized Hacks . | . . . Terminals . | . . . Fabricators . | . . . Repair Stations . | . . . Recycling Units . | . . . Scanalyzers . | . . . Garrison Access . | . . . Data Cores Recovered . | . . . Used . | . . . Hacking Detections 5 | . 5 . Full Trace Events . | . . . Feedback Events . | . . . Feedback Blocked . | . . . Robot Schematics Acquired . | . . . Robots Built . | . . . Authchips . | . . . Time . | . . . Total Robot Build Rating . | . . . Part Schematics Acquired . | . . . Parts Built . | . . . Authchips . | . . . Time . | . . . Total Part Build Rating . | . . . Parts Repaired 1 | . 1 . Time 32 | . 32 . Parts Recycled . | . . . Recycled Matter . | . . . Retrieved Matter . | . . . Retrieved Components . | . . . Parts Scanalyzed . | . . . Part Schematics Acquired . | . . . Parts Damaged . | . . . Bothacking | -11 -10 -9 ------------ Run | Jun Mat Mat Used RIF Installer . | . . . Robots Hacked . | . . . Non-combat . | . . . Combat . | . . . Robot Hacks Applied . | . . . Relay Couplers Released . | . . . Fabnet Peak Effective % . | . . . Robots Rewired . | . . . Allies Hacked . | . . . Hacks Repelled . | . . . Allies | -11 -10 -9 -------- Run | Jun Mat Mat Total Allies . | . . . Largest Group . | . . . Highest-Rated Group . | . . . Highest-Rated Ally . | . . . Total Orders . | . . . Ally Attacks . | . . . Total Damage . | . . . Kills . | . . . Allies Corrupted . | . . . Allies Melted . | . . . Intel | -11 -10 -9 ------- Run | Jun Mat Mat Robot Analysis Total . | . . . Derelict Logs Recovered . | . . . Drone Launches . | . . . Drone Recoveries . | . . . Exploration | -11 -10 -9 ------------- Run | Jun Mat Mat Turns Passed 889 | 42 752 95 Spaces Moved 487 | 38 425 24 Core 23 | 15 . 8 Treads . | . . . Legs 81 | . 65 16 Wheels 160 | 23 137 . Hover 222 | . 222 . Flight 1 | . 1 . Fastest Speed 50 | 50 56 120 Average Speed 122 | 74 123 172 Slowest Speed 260 | 90 260 200 Overloaded Moves . | . . . Propulsion Burnouts . | . . . Robots Hopped . | . . . Cave-ins Triggered . | . . . Exploration Rate (%) 25 | 3 69 5 Regions Visited 2 Branch Regions . Pre-discovered Areas . | . . . Known Exits Taken . | . . . Unknown Exits Taken 2 | 1 1 . Scrap Searched . | . . . Spaces Dug . | . . . Terrain Destroyed 1 | . . 1 Melee . | . . . Projectile 1 | . . 1 AOE . | . . . Terrain Rammed . | . . . Walls Destroyed . | . . . Machines Disabled . | . . . Actions | -11 -10 -9 --------- Run | Jun Mat Mat Total 655 | 51 558 46 Wait 26 | . 26 . Move 485 | 37 424 24 Hop . | . . . Pick Up 32 | 8 24 . Fast Attach . | . . . Attach 26 | 6 13 7 Detach 1 | . 1 . Swap 2 | . 2 . Drop 7 | . 7 . Fire 76 | . 61 15 Melee . | . . . Ram . | . . . Kick . | . . . Crush . | . . . Escape Stasis . | . . . Rewire . | . . . Trap . | . . . Miscellaneous . | . . . Route ------- -11/Junkyard -10/Materials (discovered 3 exits: [*Mat x2] / [*Min]) -9/Materials History --------- Turn | Location | Event 9 | -11/Junkyard | Discovered new exit (range 15) 43 | -11/Junkyard | Entered Materials 140 | -10/Materials | Discovered new exit (range 15) 293 | -10/Materials | Repaired Imp. Hover Unit 312 | -10/Materials | Discovered new exit (range 8) 319 | -10/Materials | Build established: Mutant 582 | -10/Materials | Core integrity fell below 50% 616 | -10/Materials | Lost 4 parts (2n2w) 655 | -10/Materials | Core integrity fell below 20% 686 | -10/Materials | Discovered new exit (range 11) 795 | -10/Materials | Entered another Materials area 795 | -9/Materials | Evolved 2 slots: Utility x2 866 | -9/Materials | Core integrity fell below 50% 890 | -9/Materials | Self-destructed Last Messages --------------- 00856_ Beam Cannon destroyed. 00858_ Aluminum Leg broken. 00858_ Overheating: Short circuit. 00858_ Broken Med. Laser destroyed. 00859_ Overheating: Aluminum Leg damaged (-5). 00859_ K-01 Serf collects debris. 00861_ Aluminum Leg destroyed. 00862_ G-34 Mercenary overheating. 00862_ Broken Aluminum Leg destroyed. 00863_ Overheating: Med. Storage Unit damaged (-64). 00863_ Overheating: Signal Interpreter damaged (-9). 00864_ G-34 Mercenary heat short circuits Aluminum Leg. 00868_ OZ||WTNYUUZ /T%ZKXKV5WFQ 00873_ G-34 Mercenary overheating. 00874_ G-34 Mercenary heat damages core (-4). 00874_ G-34 Mercenary overheating. 00886_ Critical hit (Burn: +37). 00886_ G-34 Mercenary destroyed. 00889_ Critical hit (Burn: +37). 00889_ Mining Laser destroyed. Map ----- +----------------------------------------------------+ | ?????????????????????????????????????? | | ?????????????????????????????????????? | | ?????????????????????????????????????? | | ?????????????????????????????????????? | | ?????????????????????????????????????? | | ?????????????????????????????????????? | | ?????????????????????????????????????? | | ?????????????????????????????????????? | | ?????????????????????????????????????? | | ?????????????????????????????????????? | | ?????????????????????????????????????? | | ?????????????????????????????????????? | | ?????????????????????????????????????? | | ?????????????????????????????????????? | | ?????????????????????????????????????? | | ?????????????????????????????????????? | | ????????????? ???????????????????????? | | ?????????????? ????###+##????????????? | | ??????????????? #### ????????????? | | ???????????????? ????????????? | | ????????????????? ????????????? | | ?????????????????? ????????????? | | ???????????????????# *????????????? | | ????????????????????# ########?????? | | ????????????????????# # #?????? | | ????????????????????# Y;@ "" #?????? | | ????????????????????# Y/ ""S #?????? | | ??????????? ????? ??# # "" #?????? | | ????????????????????# # #?????? | | ????????????????????# # #?????? | | ?????????????????? ?# ########?????? | | ????????????????????# #????????????? | | ?????# ############ #???????#????? | | ??? #????????????# | | ??? = #????????????? | | ??? % %=* % #?##?????????? | | ????###/############# #####????????? | | ????????????????????# #??#?????? | | ??????????????#?????# #????????? | | ????????????????#???# #????????? | | ?????????????????#??#########????????? | | ???????????????#?????????????????????? | | ?????????????????????????????????????? | | ??????????????????#??????????????????? | | | | | | | | | | | | | +----------------------------------------------------+ Best States ------------- Heat Dissipation 28 Energy Generation 14 Energy Capacity 160 Matter Stores 300 Matter Capacity 300 Sight Range 16 Terrain Scan Range 14 Terrain Scan Density 10 Armor Coverage 450 Evasion (%) 50 Item Schematics ----------------- None Robot Schematics ------------------ None Fabricated ------------ Nothing Alien Tech Used ----------------- None Achievements -------------- None Challenges ------------ None Game ------ Seed IonHeatCycler Manual? 0 Play Time 00:15:09 Cumulative 12.9 hours Start 2024.02.16 @ 08:03:59 End 2024.02.16 @ 12:43:30 Sessions 3 Manual Loads 0 Difficulty Rogue Special Mode None Game No. 16 Rogue 16 Adventurer 0 Explorer 0 Win Type - Total 0 Types 0/0/0/0/0/0/0/0/0 Lore% 17 Gallery% 16 Achievement% 15 Wizard Run 0 Options --------- ASCII 0 Keyboard 0 Movement Numpad Keybinds 0 Fullscreen 1 Font 24/Smallcaps Map View 76x50 Tactical HUD 1 Map Filters NONE Filters NONE Steam 1 RUN: ceb92186-3d06-4f17-b5d1-85b47f497217